[Event "European Women-ch 2023"]
[Site "Petrovac"]
[Date "2023.03.21"]
[Round "4.18"]
[White "Aydin, Gulenay"]
[Black "Goriachkina, Oksana"]
[Result "1/2-1/2"]
[ECO "C07"]
[WhiteElo "2039"]
[BlackElo "1759"]
[Annotator "TA"]
[PlyCount "95"]
[EventDate "2023.03.15"]
[EventType "swiss"]
[EventCountry "MNE"]
[SourceTitle "playchess.com"]
[Source "ChessBase"]
[SourceQuality "1"]
[TimeControl "40/5400+30:1800+30"]

{[%evp 10,95,16,24,20,15,22,0,17,8,14,15,27,22,33,21,66,66,60,54,74,24,27,16,36,38,27,31,26,42,110,55,41,13,12,13,13,7,50,56,50,26,33,17,84,73,60,28,112,115,121,115,179,179,179,179,179,179,177,166,109,69,172,70,104,111,218,25,131,115,127,127,104,0,0,0,5110,5110,5106,5106,2238,0,0,0,0,0,0,0]} 1. e4 {[%emt 0:00:02]} e6 {[%emt 0:00:03]} 2. d4 {[%emt 0:00:07]} d5 {[%emt 0:00:01]} 3. Nd2 {[%emt 0:00:16]} c5 {[%emt 0:00:10]} 4. Ngf3 {[%emt 0:00:43]} cxd4 {[%emt 0:00:01]} 5. exd5 {[%emt 0:00:21]} Qxd5 {[%emt 0:00:13]} 6. Bc4 {[%emt 0:00:31]} Qd7 {[%emt 0:00:03] C07: French Tarrasch: 3...c5, 4 Ngf3 and 4 exd5 Qxd5.} 7. O-O {[%emt 0:01:23][%mdl 1024] White has compensation.} a6 {[%emt 0:02:17]} 8. a4 {[%emt 0:00:31]} Nc6 {[%emt 0:01:36]} 9. Nb3 {[%emt 0:00:53]} Nf6 {[%emt 0:00:05]} 10. Qe2 {[%emt 0:01:07]} Be7 {[%emt 0:01:42]} 11. Rd1 {[%emt 0:00:24][%cal Oc1f4]} Qc7 {[%emt 0:02:03]} 12. Nbxd4 {[%emt 0:01:52]} Nxd4 {[%emt 0:07:32]} 13. Rxd4 {[%emt 0:01:57]} O-O {[%emt 0:00:31]} 14. Bf4 {[%emt 0:04:53]} Qb6 {[%emt 0:08:56] [#]} 15. b3 $146 {[%emt 0:05:59]} (15. c3 $16) ({Predecessor:} 15. c3 Bd7 16. Ne5 Rad8 17. a5 Qc5 18. Rad1 Bc8 19. b4 Qa7 20. Bg5 Qb8 21. g3 Rxd4 22. Rxd4 {0-1 Cuartas,J (2468)-Ruiz Castillo,J (2399) COL-ch pre olympic 2016 (8)}) 15... Bd7 $11 {[%emt 0:05:27]} 16. Rad1 {[%emt 0:04:26]} Bc6 {[%emt 0:01:31]} 17. Ne5 {[%emt 0:11:50]} Bc5 {[%emt 0:03:38]} 18. R4d3 {[%emt 0:15:13]} Be4 {[%emt 0:19:13]} 19. R3d2 {[%emt 0:03:11] Black must now prevent Bg5.} Bg6 {[%emt 0:12:49]} (19... Bd5 $14) 20. Nxg6 {[%emt 0:06:37]} ({Better is} 20. Bg5 $16) 20... hxg6 $14 {[%emt 0:00:06]} 21. Bd6 {[%emt 0:01:57]} Bxd6 {[%emt 0:08:34]} 22. Rxd6 {[%emt 0:00:04]} Qc5 {[%emt 0:00:10]} 23. Qd3 {[%emt 0:14:30]} Ng4 {[%emt 0:08:59]} 24. Qd4 {[%emt 0:02:35]} Qxd4 {[%emt 0:00:46]} 25. R6xd4 {[%emt 0:01:42]} Ne5 {[%emt 0:01:10]} 26. Be2 {[%emt 0:00:38]} Rab8 {[%emt 0:04:28] [#]} (26... g5 $11) 27. f4 $1 $16 {[%emt 0:02:57]} Nc6 {[%emt 0:00:05]} 28. Rd6 {[%emt 0:00:34][%cal Oe2a6] Threatens to win with Bxa6!} Rfd8 {[%emt 0:03:03]} (28... Nb4 $1 $11) 29. Bf3 {[%emt 0:09:45] White is more active.} Rxd6 {[%emt 0:00:21]} 30. Rxd6 {[%emt 0:00:04]} Rd8 {[%emt 0:00:13]} (30... Nd8 $16 {was called for.}) 31. Rxd8+ $18 {[%emt 0:00:27]} Nxd8 {[%emt 0:00:01][%mdl 4096] Endgame KB-KN} 32. a5 {[%emt 0:00:18] b4 is the strong threat.} Kf8 {[%emt 0:00:16]} 33. Kf2 {[%emt 0:01:03]} Ke7 {[%emt 0:00:22]} 34. Ke3 {[%emt 0:00:05]} Kd6 {[%emt 0:00:11]} 35. Kd4 {[%emt 0:00:37]} f6 {[%emt 0:02:18]} ({Black should try} 35... Nc6+ $14 36. Bxc6 Kxc6) 36. Be4 {[%emt 0:02:25]} (36. b4 $18) 36... g5 {[%emt 0:00:18]} 37. fxg5 {[%emt 0:00:37]} fxg5 {[%emt 0:00:04]} (37... f5 $16) 38. c4 $2 {[%emt 0:00:30]} (38. h3 $18) 38... e5+ {[%emt 0:02:50] [#]} (38... Nc6+ $11 39. Bxc6 e5+ 40. Ke4 bxc6) 39. Kc3 $1 $16 {[%emt 0:00:36]} Nc6 {[%emt 0:03:47]} 40. b4 {[%emt 0:00:00]} Kc7 {[%emt 0:00:00]} 41. Bxc6 {[%emt 0:19:58]} (41. Kb3 $16) 41... bxc6 {[%emt 0:06:02] KP-KP} 42. Kd3 {[%emt 0:05:06]} c5 $2 {[%emt 0:02:59][%mdl 8192]} 43. b5 $18 {[%emt 0:01:06]} ({Inferior is} 43. bxc5 Kc6 44. h3 Kxc5 $17) 43... axb5 {[%emt 0:00:30]} 44. cxb5 {[%emt 0:00:09] White threatens Kc4 and mate.} g4 {[%emt 0:06:08]} 45. Kc4 $2 {[%emt 0:05:59]} (45. h4 $18 Kb7 46. b6) 45... e4 $11 {[%emt 0:00:05] The position is equal.} 46. Kc3 {[%emt 0:01:12]} (46. Kxc5 $2 {loses.} e3 47. b6+ Kb8 $19) 46... Kb7 {[%emt 0:00:37]} 47. Kc4 {[%emt 0:03:07]} Kc7 {[%emt 0:00:05]} 48. Kc3 {[%emt 0:01:06] Weighted Error Value: White=0.31/Black=0.24 (precise)} (48. Kxc5 $2 {perishes.} e3 49. Kd5 e2 $19) 1/2-1/2

[Event "European Women-ch 2023"]
[Site "Petrovac"]
[Date "2023.03.21"]
[Round "4.19"]
[White "Ivekovic, Tihana"]
[Black "Ovod, Evgenija"]
[Result "1/2-1/2"]
[ECO "E04"]
[WhiteElo "2132"]
[BlackElo "2305"]
[Annotator "TA"]
[PlyCount "98"]
[EventDate "2023.03.15"]
[EventType "swiss"]
[EventCountry "MNE"]
[SourceTitle "playchess.com"]
[Source "ChessBase"]
[SourceQuality "1"]
[TimeControl "40/5400+30:1800+30"]

{[%evp 14,98,22,19,13,19,26,26,21,23,24,18,19,25,22,19,21,25,24,20,19,18,14,13,18,18,22,17,22,20,21,2,9,0,20,0,0,0,0,0,0,0,0,0,0,0,0,0,0,0,0,0,0,0,0,0,0,0,0,0,0,0,0,0,0,0,0,0,0,0,0,0,0,0,0,0,0,0,0,0,0,0,0,0,0,0,0]} 1. d4 {[%emt 0:00:02]} d5 {[%emt 0:00:06]} 2. c4 {[%emt 0:00:04]} e6 {[%emt 0:00:08]} 3. Nf3 {[%emt 0:00:04]} Nf6 {[%emt 0:00:09]} 4. g3 {[%emt 0:00:05]} dxc4 {[%emt 0:00:07]} 5. Bg2 {[%emt 0:00:04]} Bd7 {[%emt 0:00:07]} 6. Ne5 {[%emt 0:00:15]} Bc6 {[%emt 0:00:07]} 7. Nxc6 {[%emt 0:00:04]} Nxc6 {[%emt 0:00:05]} 8. O-O {[%emt 0:00:11]} Qd7 {[%emt 0:00:12] E04: Open Catalan: 5 Nf3.} 9. e3 {[%emt 0:00:16]} Rd8 {[%emt 0:00:10]} 10. Qe2 {[%emt 0:00:21] 10.Qc2 deserves study.} e5 {[%emt 0:00:12] White has an edge.} 11. Qxc4 {[%emt 0:00:07]} exd4 {[%emt 0:00:14]} 12. Qb5 {[%emt 0:00:19]} Rb8 {[%emt 0:00:15]} 13. Rd1 {[%emt 0:00:11]} a6 {[%emt 0:00:07]} 14. Qc4 {[%emt 0:00:05][%cal Re3d4] has lost popularity (14.Qf1).} Bd6 {[%emt 0:00:16]} 15. exd4 {[%emt 0:00:10]} O-O {[%emt 0:00:15]} 16. Nc3 {[%emt 0:00:09]} h6 {[%emt 0:00:13] [#] The position is equal.} 17. a3 $146 {[%emt 0:00:20]} ({Predecessor:} 17. Nd5 Nxd5 18. Qxd5 Rfe8 19. Be3 Ne7 20. Qh5 Qf5 21. Qxf5 Nxf5 22. Rd3 Nxe3 23. fxe3 {½-½ Andreikin,D (2736)-Lu,S (2619) CHN-chT China 2016 (22.2)}) 17... Ne7 {[%emt 0:07:47]} 18. Bd2 {[%emt 0:03:09]} Qf5 {[%emt 0:01:13]} 19. Rac1 {[%emt 0:04:33]} c6 {[%emt 0:05:09]} ({Don't play} 19... Ng4 20. Ne4 $16 (20. f3 Nf6 $14 {[%mdl 64] Decoy})) 20. Re1 {[%emt 0:06:01]} Ned5 {[%emt 0:15:35]} (20... Ng4 $2 21. Ne4 Nc8 22. Qd3 $16) 21. Nxd5 {[%emt 0:14:07]} Nxd5 {[%emt 0:00:08]} 22. Bxd5 {[%emt 0:00:45]} (22. Be4 {looks sharper.} Qh5 23. Kg2 Rfe8 24. Qc2) 22... cxd5 {[%emt 0:00:13]} 23. Qb3 {[%emt 0:00:06]} h5 {[%emt 0:16:53] Black is weak on the dark squares} 24. h4 {[%emt 0:01:31]} Rfe8 {[%emt 0:16:08]} 25. Re3 {[%emt 0:08:46]} Re4 {[%emt 0:05:23]} 26. Rxe4 {[%emt 0:05:32]} dxe4 {[%emt 0:01:14]} 27. Bb4 {[%emt 0:04:40]} Qb5 {[%emt 0:06:41] [#] Threatens to win with ...a5.} 28. Qc4 {[%emt 0:04:13]} Bxb4 {[%emt 0:00:12]} 29. Qxb5 {[%emt 0:00:16]} ({Much worse is} 29. Qxb4 Qxb4 30. axb4 Rd8 $15) 29... axb5 {[%emt 0:00:06]} 30. axb4 $11 {[%emt 0:00:04][%mdl 4096] Endgame KR-KR} Rd8 {[%emt 0:00:04]} 31. Rc5 {[%emt 0:00:14][%csl LRb5,LRh5]} Rxd4 {[%emt 0:00:52]} 32. Rxb5 {[%emt 0:00:12]} Rd1+ {[%emt 0:04:10]} 33. Kg2 {[%emt 0:02:22]} Rd2 {[%emt 0:00:05]} 34. Kf1 {[%emt 0:00:13]} Rxb2 {[%emt 0:00:56]} 35. Rxb7 {[%emt 0:00:08]} g6 {[%emt 0:00:23]} 36. b5 {[%emt 0:00:13]} Kg7 {[%emt 0:00:23]} 37. Rb6 {[%emt 0:01:42]} Kf8 {[%emt 0:02:10]} 38. Rb7 {[%emt 0:00:07]} Ke8 {[%emt 0:05:14]} 39. Ke1 {[%emt 0:00:41]} Kf8 {[%emt 0:01:38]} 40. Kf1 {[%emt 0:00:00]} Kg8 {[%emt 0:00:00]} 41. Kg1 {[%emt 0:00:33]} Rb1+ {[%emt 0:03:02]} 42. Kg2 {[%emt 0:00:16]} Kf8 {[%emt 0:00:14]} 43. Kh2 {[%emt 0:01:07]} Rb3 {[%emt 0:03:09]} 44. Kg2 {[%emt 0:00:44]} Kg7 {[%emt 0:04:33]} 45. Rb6 {[%emt 0:00:35]} Rf3 {[%emt 0:01:15]} 46. Rc6 {[%emt 0:00:39]} Rb3 {[%emt 0:02:02]} 47. Rb6 {[%emt 0:00:05]} Rb1 {[%emt 0:12:41]} 48. Kh2 {[%emt 0:00:19]} Rb2 {[%emt 0:00:22]} 49. Kg1 {[%emt 0:00:06]} Rb1+ {[%emt 0:00:40] A balanced but interesting game.   Weighted Error Value: White=0.02 (flawless) /Black=0.00 (flawless)} 1/2-1/2

[Event "European Women-ch 2023"]
[Site "Petrovac"]
[Date "2023.03.21"]
[Round "4.19"]
[White "Buchholz, Maja Patricia"]
[Black "Maione, Melissa"]
[Result "0-1"]
[ECO "E62"]
[WhiteElo "1883"]
[BlackElo "2028"]
[Annotator "TA"]
[PlyCount "70"]
[EventDate "2023.03.15"]
[EventType "swiss"]
[EventCountry "MNE"]
[SourceTitle "playchess.com"]
[Source "ChessBase"]
[SourceQuality "1"]
[TimeControl "40/5400+30:1800+30"]

{[%evp 18,69,-8,-14,-13,0,0,-52,-6,-2,0,0,0,0,21,7,0,0,20,0,18,0,0,1,0,0,20,0,0,0,0,0,-15,-20,0,-21,-9,-36,-27,-95,-91,-162,-165,-310,-310,-441,-419,-1044,-997,-29988,-29989,-29998,-29999,-29999]} 1. c4 {[%emt 0:00:03]} e5 {[%emt 0:00:08]} 2. g3 {[%emt 0:00:05]} Nf6 {[%emt 0:00:09]} 3. Bg2 {[%emt 0:00:06]} Nc6 {[%emt 0:00:33]} 4. Nc3 {[%emt 0:00:18]} g6 {[%emt 0:00:11]} 5. Nf3 {[%emt 0:00:38]} Bg7 {[%emt 0:00:51]} 6. d4 {[%emt 0:01:16]} d6 {[%emt 0:03:44]} 7. O-O {[%emt 0:02:17]} O-O {[%emt 0:00:49]} 8. e4 {[%emt 0:01:23]} exd4 {[%emt 0:00:53]} 9. Nxd4 {[%emt 0:00:25]} Nxd4 {[%emt 0:00:40]} 10. Qxd4 {[%emt 0:00:16]} Ng4 {[%emt 0:00:09] E62: King's Indian: Fianchetto: 6...c6 and Panno Variation (6...Nc6) without ...a6.} 11. Qd2 {[%emt 0:01:10]} Ne5 {[%emt 0:02:36]} 12. Qe2 {[%emt 0:08:28]} ({White should play} 12. b3 $11) 12... Be6 {[%emt 0:01:26]} (12... c6 $15 {feels stronger.}) 13. Nd5 $11 {[%emt 0:01:00] [#]} Nxc4 $1 {[%emt 0:03:43]} 14. Qxc4 {[%emt 0:02:34]} c6 {[%emt 0:00:11] [#]} 15. Qb3 $146 {[%emt 0:03:30]} ({Predecessor:} 15. Bf4 cxd5 16. exd5 Bf5 17. Qb4 Be5 18. Bxe5 dxe5 19. Rfe1 a5 20. Qb3 Qe7 21. Rad1 Rfd8 22. Qc3 {1-0 Ramirez,J (1861)-Frutos Moreno,C (1439) PAR-ch sf Asuncion 2019 (1)}) 15... Qd7 {[%emt 0:04:10] [#]} 16. Bf4 $1 {[%emt 0:04:53][%cal Ob3a3]} cxd5 {[%emt 0:06:01]} 17. exd5 {[%emt 0:00:47]} Bf5 {[%emt 0:01:19]} 18. Rfe1 {[%emt 0:01:49]} Rfe8 {[%emt 0:05:55]} 19. Rac1 {[%emt 0:06:27]} Bd4 {[%emt 0:08:03]} 20. Qb4 {[%emt 0:03:31][%csl LRd4,LRd6]} Bc5 {[%emt 0:00:49]} 21. Qd2 {[%emt 0:00:55]} Qb5 {[%emt 0:03:11]} 22. a3 {[%emt 0:05:18]} a5 {[%emt 0:02:15]} 23. Bf1 {[%emt 0:04:26]} Qb6 {[%emt 0:01:13]} 24. Kg2 {[%emt 0:09:23]} h5 {[%emt 0:03:35]} 25. f3 {[%emt 0:00:48]} Bd4 {[%emt 0:05:13]} 26. b4 {[%emt 0:03:19]} Rxe1 {[%emt 0:04:30]} 27. Rxe1 {[%emt 0:05:40][%cal Of4d6]} (27. Qxe1 {simplifies} axb4 28. Qxb4 Qxb4 29. axb4 Ra2+ 30. Kh1) 27... axb4 {[%emt 0:00:35]} 28. axb4 {[%emt 0:03:43] [#]} (28. Qxb4 $11 {keeps the balance.} Qxb4 29. axb4) 28... Rc8 $1 $17 {[%emt 0:01:03] aiming for ...Rc2.} 29. Re2 {[%emt 0:02:31] [#]} (29. Bd3 $17 Bc3 30. Qe3) 29... Bc3 $1 $19 {[%emt 0:03:22]} 30. Qa2 {[%emt 0:05:59]} (30. Qe3 {is a better defense.} Qxb4 31. Rf2) 30... Qxb4 {[%emt 0:01:01][%cal Oh5h4] White must now prevent ...h4!} ({Worse is} 30... Bxb4 31. Qb2 $17) 31. Qa7 {[%emt 0:00:32]} (31. Bd2 $142) 31... Bd3 {[%emt 0:03:56]} 32. Re7 {[%emt 0:01:41]} (32. Rf2 $142 Bd4 33. Qa2 Bxf2 34. Bxd3) 32... Bd4 {[%emt 0:02:05] ( -> ...Qb2+)} 33. Qxb7 {[%emt 0:00:46]} Rc2+ {[%emt 0:01:05][%mdl 64] Deflection. Black mates.} 34. Kh3 {[%emt 0:03:03]} Bxf1+ {[%emt 0:00:07]} 35. Kh4 {[%emt 0:00:05]} Bf6# {[%emt 0:00:08] Excellently played by Maione!   Weighted Error Value: White=0.65/Black=0.04 (flawless)} 0-1

[Event "European Women-ch 2023"]
[Site "Petrovac"]
[Date "2023.03.21"]
[Round "4.20"]
[White "Unuk, Laura"]
[Black "Allahverdiyeva, Ayan"]
[Result "1-0"]
[ECO "E15"]
[WhiteElo "2297"]
[BlackElo "2124"]
[Annotator "TA"]
[PlyCount "105"]
[EventDate "2023.03.15"]
[EventType "swiss"]
[EventCountry "MNE"]
[SourceTitle "playchess.com"]
[Source "ChessBase"]
[SourceQuality "1"]
[TimeControl "40/5400+30:1800+30"]

{[%evp 21,105,11,39,7,9,4,8,2,0,4,5,0,2,6,23,0,29,0,0,-8,0,-6,0,-7,0,-33,-15,-53,0,0,0,-27,-27,-58,-37,-30,0,-41,-31,-77,-6,-4,-4,-89,-85,-91,-90,-149,-145,-160,-34,-113,-122,-141,-152,-268,-231,-247,-179,-181,-167,-182,-193,-192,-166,-158,0,8,8,8,12795,0,-8,-8,-8,-8,29985,29986,29986,29987,29987,29988,29988,29989,29989,29990]} 1. d4 {[%emt 0:00:59]} Nf6 {[%emt 0:00:46]} 2. c4 {[%emt 0:00:22]} e6 {[%emt 0:00:04]} 3. Nf3 {[%emt 0:00:13]} b6 {[%emt 0:00:04]} 4. g3 {[%emt 0:00:17]} Ba6 {[%emt 0:00:05]} 5. b3 {[%emt 0:00:17]} Bb4+ {[%emt 0:00:04]} 6. Bd2 {[%emt 0:00:05]} Be7 {[%emt 0:00:04]} 7. Bg2 {[%emt 0:00:13]} O-O {[%emt 0:00:30]} 8. O-O {[%emt 0:00:53]} d5 {[%emt 0:00:25]} 9. Ne5 {[%emt 0:02:08]} Bb7 {[%emt 0:00:16]} 10. Nc3 {[%emt 0:02:53]} Nbd7 {[%emt 0:01:00]} 11. Bf4 {[%emt 0:05:12][%cal Bd2f4,Bf4e5,Be5c3][%mdl 32]} c5 {[%emt 0:02:48] 11...Ne4 is vanishing.} 12. cxd5 {[%emt 0:26:09][%cal Od5d6] aiming for d6! E15: Queen's Indian: 4 g3 sidelines, 4 g3 Ba6 and 4 g3 Bb7 early deviations.} Nxe5 {[%emt 0:07:35]} 13. Bxe5 {[%emt 0:12:16][%cal Od5d6] Black must now prevent d6!} Nxd5 {[%emt 0:00:48]} 14. Nxd5 {[%emt 0:01:47] The position is equal.} Bxd5 {[%emt 0:00:04]} 15. e4 {[%emt 0:00:46]} Bb7 {[%emt 0:01:36]} 16. d5 {[%emt 0:01:10]} (16. dxc5 {keeps more tension.} Bxc5 17. Qg4 g6 18. a3) 16... exd5 {[%emt 0:02:59]} 17. exd5 {[%emt 0:00:44]} Bd6 {[%emt 0:02:22]} 18. Bc3 {[%emt 0:06:37] [#]} Re8 $146 {[%emt 0:14:23]} ({Predecessor:} 18... Qd7 19. Re1 Rae8 20. Be4 f5 21. Bb2 fxe4 {0-1 Quack,R (2254)-Gabel,A (2345) GER-ch51 V01 email 2019}) 19. f4 {[%emt 0:16:26]} (19. Qg4 {feels hotter.} Bf8 20. Rfe1 Qc8 21. Qa4) 19... Qd7 {[%emt 0:04:37]} 20. Qd2 {[%emt 0:00:59]} (20. Qh5 {seems wilder.} Bf8 21. Rfe1 Rad8 22. Rad1) 20... Qf5 {[%emt 0:09:31]} 21. Rad1 {[%emt 0:02:36]} Rad8 {[%emt 0:04:16]} 22. Rfe1 {[%emt 0:01:03]} h5 {[%emt 0:06:59][%cal Oh5h4]} 23. Bb2 {[%emt 0:04:48]} Bc8 {[%emt 0:06:49]} 24. Qc3 {[%emt 0:00:28][%csl Gb2][%cal Rc3g7]} (24. Rxe8+ {simplifies} Rxe8 25. Re1 Rxe1+ 26. Qxe1 Bf8 27. Qe4) 24... Qg6 {[%emt 0:01:14]} (24... f6 $15) 25. Be4 $1 $11 {[%emt 0:04:30]} Qh6 {[%emt 0:00:05]} 26. Qd3 {[%emt 0:01:09]} h4 {[%emt 0:05:24]} 27. Be5 {[%emt 0:01:23]} hxg3 {[%emt 0:01:17]} (27... Bxe5 28. fxe5 Qg5 29. Qc3 $14 (29. Bh7+ Kf8 $17)) (27... Bg4 {simplifies} 28. Ra1 Re7 29. Bxd6 Qxd6 30. Re3 b5) 28. Qxg3 {[%emt 0:02:57]} Re7 {[%emt 0:08:40]} 29. Bf3 {[%emt 0:02:29]} Bf5 {[%emt 0:01:42]} 30. Kf2 {[%emt 0:00:25]} (30. Bg2 $15 {might be stronger.}) 30... Bc2 {[%emt 0:05:26]} ({Black should try} 30... Rde8 $1 $17) 31. Rc1 {[%emt 0:01:09]} Bd3 {[%emt 0:01:52][%cal Bc2d3,Bd3c4,Bc4a2,Ba2b3][%mdl 32]} 32. Rcd1 {[%emt 0:00:29]} (32. Bxd6 $11 Qxd6 33. Rxe7 Qxe7 34. Re1) 32... c4 $17 {[%emt 0:02:27]} 33. bxc4 {[%emt 0:00:12]} Bxc4 {[%emt 0:00:10]} 34. Kg2 {[%emt 0:02:32]} (34. Rg1 $142 Rxe5 35. fxe5 Bc5+ 36. Kg2) 34... Bxa2 {[%emt 0:00:49]} 35. Kh1 {[%emt 0:00:01][%cal Oe5g7]} Red7 {[%emt 0:01:15]} (35... Bb3 $1 $17 {[%cal Rb3d1]} 36. Rd3 Bc4) 36. Qg2 {[%emt 0:01:07]} (36. Bxg7 $1 $15 Qxg7 37. Qf2) 36... Bb3 {[%emt 0:03:13]} 37. Rd4 {[%emt 0:00:10]} Re7 {[%emt 0:00:52] ...f6 would be deadly.} 38. Qg3 {[%emt 0:01:00]} (38. Rb1 $2 Bxe5 39. fxe5 Rxe5 $19) (38. Rd3 $17 {was called for.} Bc4 39. Rdd1) 38... Rde8 {[%emt 0:00:21] Strongly threatening ...f6.} 39. Rd3 {[%emt 0:00:32]} f6 {[%emt 0:04:00][%cal Bf7f6,Bf6e5,Be5f4][%mdl 32]} 40. Rxb3 {[%emt 0:00:00][%cal Of3g4]} fxe5 {[%emt 0:00:00]} 41. Qg2 {[%emt 0:12:28]} exf4 {[%emt 0:04:50]} ({Worse is} 41... Qxf4 42. Be4 Rc8 43. Bh7+ (43. Qh3 Rc1 $11) 43... Kxh7 44. Qh3+ Kg8 45. Qxc8+ Qf8 46. Qg4 $11) 42. Re6 {[%emt 0:00:34]} Qh4 {[%emt 0:03:35]} 43. Rb1 {[%emt 0:00:47] [#]} Kf8 $2 {[%emt 0:06:46]} 44. Rg1 $11 {[%emt 0:03:02]} Bc5 {[%emt 0:01:03]} (44... Rxe6 $2 45. Qxg7#) 45. d6 $1 {[%emt 0:01:33] Really sharp!} Rd7 {[%emt 0:07:25][%mdl 8192] [#]} (45... Rxe6 $2 46. Qxg7#) (45... Rf7 $2 46. Rxe8+ Kxe8 47. Bc6+ Kf8 48. Qe2 $18) (45... Bxg1 $11 46. dxe7+ Rxe7 47. Rxe7 Qxe7) 46. Bc6 $2 $40 {[%emt 0:13:34][%mdl 128] White mounts an attack.} (46. Rxe8+ $1 $18 Kxe8 47. Qg6+ Kd8 48. Qe4 Qxh2+ 49. Kxh2 Bxg1+ 50. Kxg1 Rxd6 51. Bg4) 46... Bxg1 {[%emt 0:09:26]} (46... Red8 $2 47. Qg6 Bxg1 48. Kxg1 $18) 47. Bxd7 {[%emt 0:00:06]} Rxe6 {[%emt 0:01:52]} 48. Bxe6 {[%emt 0:00:04] [#] Intending Qa8+ and mate. KQB-KQB} Qd8 {[%emt 0:01:06][%mdl 8192] Repels Qa8} 49. Qg6 {[%emt 0:00:51][%csl Ge6][%cal Rg6f7] White mates.} ({Not} 49. Kxg1 Qxd6 50. Qe4 Qd1+ 51. Kf2 Qd2+ 52. Kf1 (52. Kf3 Qxh2 53. Qf5+ Ke7 $11) 52... Qd1+ 53. Kg2 Qd2+ 54. Kh3 Qe3+ 55. Qxe3 fxe3 $11) 49... Qf6 {[%emt 0:00:37]} 50. Qxf6+ {[%emt 0:00:11]} (50. Qxg1 $2 {perishes.} Qxe6 51. Qd1 Qe4+ 52. Kg1 Ke8 53. Qh5+ g6 54. Qh8+ Kd7 55. Qh7+ Kxd6 56. Qxa7 Kc5 $19) 50... gxf6 {[%emt 0:00:14]} 51. Kxg1 {[%emt 0:00:02]} a5 {[%emt 0:00:33]} 52. h4 {[%emt 0:00:32][%cal Bh2h4,Bh4h5][%mdl 32]} a4 {[%emt 0:00:58]} 53. h5 {[%emt 0:00:10] Ingenious play by Unuk!   Weighted Error Value: White=0.42/Black=0.35} 1-0

[Event "European Women-ch 2023"]
[Site "Petrovac"]
[Date "2023.03.21"]
[Round "4.20"]
[White "Bluebaum, Johanna"]
[Black "Ivanovic, Tara"]
[Result "1-0"]
[ECO "E61"]
[WhiteElo "1954"]
[BlackElo "1472"]
[Annotator "TA"]
[PlyCount "67"]
[EventDate "2023.03.15"]
[EventType "swiss"]
[EventCountry "MNE"]
[SourceTitle "playchess.com"]
[Source "ChessBase"]
[SourceQuality "1"]
[TimeControl "40/5400+30:1800+30"]

{[%evp 13,67,10,16,29,36,0,54,39,54,41,111,94,95,90,136,137,179,169,171,156,223,229,219,201,231,179,183,172,290,216,259,242,315,223,336,319,429,186,555,561,561,550,560,551,1053,1050,1041,1041,1462,1436,1502,1104,1210,608,29995,29996]} 1. d4 {[%emt 0:00:02]} Nf6 {[%emt 0:00:07]} 2. c4 {[%emt 0:00:05]} g6 {[%emt 0:00:06]} 3. Nc3 {[%emt 0:00:05]} Bg7 {[%emt 0:00:05]} 4. Nf3 {[%emt 0:00:06]} O-O {[%emt 0:00:15]} 5. Bg5 {[%emt 0:01:29]} d6 {[%emt 0:02:08]} 6. e3 {[%emt 0:00:15]} c5 {[%emt 0:04:49]} 7. d5 $1 {[%emt 0:02:33][%mdl 4] now scores much better than the old 7.Be2.} Na6 {[%emt 0:02:30]} (7... h6 $5 {[%cal Rh6g5]} 8. Bxf6 Bxf6 $11) 8. Bd3 {[%emt 0:00:26] E61: King's Indian: Early deviations for White, including Smyslov System.} Nc7 {[%emt 0:01:20]} 9. a4 {[%emt 0:00:41][%cal Ba2a4,Ba4a5][%mdl 32] [#]} Bg4 $146 {[%emt 0:05:12]} (9... h6 $11 10. Bh4 Na6) ({Predecessor:} 9... e6 10. e4 exd5 11. cxd5 h6 12. Bh4 Re8 13. O-O Rb8 14. Nd2 g5 15. Bg3 Ng4 {1-0 Furman,B (2114)-Sankalan,S (1903) Vojvodina op 11th 2021 (8)}) 10. h3 $14 {[%emt 0:00:55] White is slightly better.} Bd7 {[%emt 0:00:03]} 11. O-O {[%emt 0:02:45]} a6 {[%emt 0:13:42]} ({Black should try} 11... h6 $14 12. Bf4 g5) 12. a5 {[%emt 0:00:39]} Rb8 {[%emt 0:02:51]} 13. e4 {[%emt 0:04:28][%cal Be3e4,Be4e5][%mdl 32] White is more active.} h6 {[%emt 0:05:24]} ({Better is} 13... e5) 14. Be3 $16 {[%emt 0:01:07]} b5 {[%emt 0:04:28]} 15. axb6 {[%emt 0:00:27]} Rxb6 {[%emt 0:00:06]} 16. Qd2 {[%emt 0:02:15]} Kh7 {[%emt 0:00:22]} (16... e5 $16 {was necessary.} 17. dxe6 (17. Bxh6 Qb8 $16) 17... Nxe6 18. Bxh6 Re8 19. Bxg7 Kxg7) 17. e5 $18 {[%emt 0:00:35]} Ng8 {[%emt 0:01:36]} 18. Qc2 {[%emt 0:06:49]} Kh8 {[%emt 0:07:07]} 19. Ne4 {[%emt 0:06:36][%cal Ob2b4]} Qb8 {[%emt 0:11:19]} 20. Ra2 {[%emt 0:00:38]} Qb7 {[%emt 0:04:49]} (20... dxe5 $142 21. Nxc5 (21. Bxc5 f5 $18) 21... Be8) 21. Rb1 {[%emt 0:02:40]} Rb8 {[%emt 0:05:46]} 22. Bf4 {[%emt 0:02:18][%cal Re5d6]} Ne8 {[%emt 0:06:03]} 23. Nc3 {[%emt 0:07:03]} Qc7 {[%emt 0:04:14]} (23... g5 {was called for.}) 24. Re1 {[%emt 0:03:03] [#] Strongly threatening e6.} Qb7 {[%emt 0:04:46]} 25. Nd1 {[%emt 0:01:58]} (25. e6 $142 fxe6 26. Nh4 (26. Bxg6 Rxb2 27. Rxb2 Qxb2 $11)) 25... Rb4 $2 {[%emt 0:03:11]} (25... g5 {is more resistant.}) 26. e6 {[%emt 0:02:42]} fxe6 {[%emt 0:01:06]} 27. dxe6 {[%emt 0:02:25]} ({Inferior is} 27. Bxg6 exd5 28. b3 e5 $15) 27... Bc6 {[%emt 0:00:07]} 28. Nh4 {[%emt 0:00:24]} (28. Bxg6 Bxf3 29. gxf3 Qxf3 $14) 28... Bxb2 {[%emt 0:05:31]} 29. Nxg6+ {[%emt 0:00:16]} ({Not} 29. Bxg6 Bf6 $16) 29... Kg7 {[%emt 0:00:06]} 30. Ne3 {[%emt 0:01:36]} Bd4 {[%emt 0:03:36]} 31. Nf5+ {[%emt 0:00:26]} Kf6 {[%emt 0:00:15]} 32. Nxd4 {[%emt 0:02:11]} cxd4 {[%emt 0:00:31]} 33. Qe2 {[%emt 0:03:35]} Qc7 {[%emt 0:01:24]} 34. Qg4 {[%emt 0:00:30] Black did not feel at home in the position after the opening.   Weighted Error Value: White=0.67/Black=0.89} 1-0